{"text_format":"3","workbook":"xlsx","n_sheets":3,"sheets":["Veraset Envanteri","Veraset Varlıkları","Veraset Borçları"],"not_rendered":{"defined_names":1},"read":"whole","date_system":"1900"}

{"sheet":"Veraset Envanteri","index":0,"n_rows":45,"n_cols":35,"rows_kept":45,"merged":[[0,1,0,30],[0,31,0,39],[1,1,5,39],[6,1,6,6],[6,7,6,39],[7,1,7,6],[7,7,7,39],[9,1,9,6],[9,7,9,39],[10,1,10,6],[10,7,10,39],[11,1,11,6],[11,7,11,20],[11,21,11,26],[11,27,11,30],[11,31,11,33],[11,34,11,39],[12,1,12,6],[12,7,12,20],[12,21,12,26],[13,1,13,6],[13,7,13,20],[13,21,13,26],[14,1,14,6],[14,7,14,20],[14,21,14,26],[15,1,15,6],[17,1,17,39],[18,1,18,6],[18,7,18,12],[18,13,18,15],[18,16,18,18],[18,19,18,26],[18,27,18,31],[18,32,18,39],[19,1,19,6],[19,7,19,12],[19,13,19,15],[19,16,19,18],[19,19,19,26],[19,27,19,31],[19,32,19,39],[20,1,20,6],[20,7,20,12],[20,13,20,15],[20,16,20,18],[20,19,20,26],[20,27,20,31],[20,32,20,39],[21,1,21,6],[21,7,21,12],[21,13,21,15],[21,16,21,18],[21,19,21,26],[21,27,21,31],[21,32,21,39],[22,1,22,6],[22,7,22,12],[22,13,22,15],[22,16,22,18],[22,19,22,26],[22,27,22,31],[22,32,22,39],[23,1,23,6],[23,7,23,12],[23,13,23,15],[23,16,23,18],[23,19,23,26],[23,27,23,31],[23,32,23,39],[25,1,25,39],[26,1,26,6],[26,7,26,12],[26,13,26,18],[26,19,26,26],[26,27,26,31],[26,32,26,39],[27,1,27,6],[27,7,27,12],[27,13,27,18],[27,19,27,26],[27,27,27,31],[27,32,27,39],[28,1,28,6],[28,7,28,12],[28,13,28,18],[28,19,28,26],[28,27,28,31],[28,32,28,39],[29,1,29,6],[29,7,29,12],[29,13,29,18],[29,19,29,26],[29,27,29,31],[29,32,29,39],[30,1,30,6],[30,7,30,12],[30,13,30,18],[30,19,30,26],[30,27,30,31],[30,32,30,39],[31,1,31,6],[31,7,31,12],[31,13,31,18],[31,19,31,26],[31,27,31,31],[31,32,31,39],[33,1,33,12],[33,14,33,39],[34,1,34,12],[34,14,34,21],[34,22,34,25],[34,26,34,33],[34,34,34,39],[35,2,35,12],[35,14,35,21],[35,22,35,25],[35,26,35,33],[35,34,35,39],[36,2,36,12],[36,14,36,21],[36,22,36,25],[36,26,36,33],[36,34,36,39],[37,2,37,12],[37,14,37,21],[37,22,37,25],[37,26,37,33],[37,34,37,39],[38,2,38,12],[38,14,38,21],[38,22,38,25],[38,26,38,33],[38,34,38,39],[39,2,39,12],[39,14,39,21],[39,22,39,25],[39,26,39,33],[39,34,39,39],[40,2,40,12],[40,14,40,21],[40,22,40,25],[40,26,40,33],[40,34,40,39],[41,2,41,12],[41,14,41,21],[41,22,41,25],[41,26,41,33],[41,34,41,39],[42,2,42,12],[42,14,42,21],[42,22,42,25],[42,26,42,33],[42,34,42,38],[43,2,43,12],[43,14,43,21],[43,22,43,25],[43,26,43,33],[43,34,43,39],[44,2,44,12],[44,14,44,21],[44,22,44,25],[44,26,44,33],[44,34,44,39]]}
[]
[null,"Veraset Envanteri"]
[]
[]
[]
[]
[null,"Vasiyeti Uygulayanların Adı",{"$nulls":5},"Yalın Evren"]
[null,"İletişim Bilgileri",{"$nulls":5},"4567 Ana Cadde Beyoğlu, İstanbul 98052"]
[]
[null,"Merhumun Adı",{"$nulls":5},"Ahmet Öztürk"]
[null,"Açık Adres",{"$nulls":5},"Atatürk Cad. No: 6789"]
[null,"Şehir",{"$nulls":5},"Beşiktaş",{"$nulls":13},"Eyalet",{"$nulls":5},"İST",{"$nulls":3},"Posta Kodu",null,null,98052]
[null,"SGN",{"$nulls":5},"AAA-GG-SSSS",{"$nulls":13},"Meslek",{"$nulls":5},"Dişçi"]
[null,"Doğum Tarihi",{"$nulls":5},"1965-12-08",{"$nulls":13},"Doğum yeri",{"$nulls":5},"İST"]
[null,"Ölüm Tarihi",{"$nulls":5},{"$f":"TODAY()-3","v":"2022-05-10"},{"$nulls":13},"Ölüm Yeri",{"$nulls":5},"İST"]
[null,"Ek Bilgiler"]
[]
[null,"  Eş, Çocuklar ve Diğer Bakılmakla Yükümlü Olan Kimseler"]
[null,"Ad",{"$nulls":5},"İlişki",{"$nulls":5},"Bakılmakla Yükümlü Olan Kimse",null,null,"Yaş",null,null,"Adres",{"$nulls":7},"Telefon Numarası",{"$nulls":4},"E-posta adresi"]
[null,"Demet Şimşek",{"$nulls":5},"Kişisel Temsilci",{"$nulls":5},"Hayır",null,null,30]
[null,"Melis Ünal",{"$nulls":5},"Eş",{"$nulls":5},"Evet",null,null,35]
[null,"Ali Yılmaz",{"$nulls":5},"Çocuk",{"$nulls":5},"Evet",null,null,12]
[]
[]
[]
[null,"Profesyonel Danışmanlar"]
[null,"Danışman Türü",{"$nulls":5},"İrtibat Kişisi",{"$nulls":5},"Şirket",{"$nulls":5},"Adres",{"$nulls":7},"Telefon Numarası",{"$nulls":4},"E-posta adresi"]
[null,"Muhasebeci"]
[null,"Avukat/Noter"]
[null,"Diğer"]
[]
[]
[]
[null,"  Veraset Denetim Listesi",{"$nulls":12},"  Veraset Envanterleri"]
[null,"    Denetim Listesi Öğeleri",{"$nulls":12},"Veraset Varlıkları",{"$nulls":7},"Değer (₺)",{"$nulls":3},"Veraset Borçları",{"$nulls":7},"Değer (₺)"]
[null,"✔","Son Vasiyet, Ahit veya diğer belgeler",{"$nulls":11},{"$f":"'Veraset Varlıkları'!B12","v":"Banka Hesapları"},{"$nulls":7},{"$f":"'Veraset Varlıkları'!G20","v":{"v":0,"d":"₺0.00"}},{"$nulls":3},{"$f":"'Veraset Borçları'!B11","v":"İpotekler"},{"$nulls":7},{"$f":"'Veraset Borçları'!G18","v":{"v":0,"d":"₺0.00"}}]
[null,"✔","Kasa kiralama sözleşmesi ve anahtarlar",{"$nulls":11},{"$f":"'Veraset Varlıkları'!B22","v":"Kişisel Yatırımlar"},{"$nulls":7},{"$f":"'Veraset Varlıkları'!G30","v":{"v":0,"d":"₺0.00"}},{"$nulls":3},{"$f":"'Veraset Borçları'!B21","v":"Kişisel Krediler ve Kredi Limitleri"},{"$nulls":7},{"$f":"'Veraset Borçları'!G28","v":{"v":0,"d":"₺0.00"}}]
[null,"✖","Bilgisayarlar ve çevrimiçi hesapların parolaları",{"$nulls":11},{"$f":"'Veraset Varlıkları'!B32","v":"Ticari Çıkarlar"},{"$nulls":7},{"$f":"'Veraset Varlıkları'!G40","v":{"v":0,"d":"₺0.00"}},{"$nulls":3},{"$f":"'Veraset Borçları'!B31","v":"Ticari Çıkarlar"},{"$nulls":7},{"$f":"'Veraset Borçları'!G38","v":{"v":0,"d":"₺0.00"}}]
[null,"✔","Ömür boyu kayyumluk anlaşmaları",{"$nulls":11},{"$f":"'Veraset Varlıkları'!B42","v":"Emlak"},{"$nulls":7},{"$f":"'Veraset Varlıkları'!G50","v":{"v":0,"d":"₺0.00"}},{"$nulls":3},{"$f":"'Veraset Borçları'!B41","v":"Kredi Kartları"},{"$nulls":7},{"$f":"'Veraset Borçları'!G48","v":{"v":0,"d":"₺0.00"}}]
[null,"✔","Hayat sigortası, sağlık/kaza ve sigorta poliçeleri",{"$nulls":11},{"$f":"'Veraset Varlıkları'!B52","v":"Emeklilik Planları"},{"$nulls":7},{"$f":"'Veraset Varlıkları'!G60","v":{"v":0,"d":"₺0.00"}},{"$nulls":3},{"$f":"'Veraset Borçları'!B51","v":"Diğer Borçlar"},{"$nulls":7},{"$f":"'Veraset Borçları'!G58","v":{"v":0,"d":"₺0.00"}}]
[null,"✔","Mali tablolar",{"$nulls":11},{"$f":"'Veraset Varlıkları'!B62","v":"Sigorta"},{"$nulls":7},{"$f":"'Veraset Varlıkları'!G70","v":{"v":0,"d":"₺0.00"}}]
[null,"✔","Son üç yıla ait gelir vergisi beyannameleri",{"$nulls":11},{"$f":"'Veraset Varlıkları'!B72","v":"Özel Krediler ve İpotekler"},{"$nulls":7},{"$f":"'Veraset Varlıkları'!G80","v":{"v":0,"d":"₺0.00"}}]
[null,"✔","Doğum ve ölüm sertifikaları",{"$nulls":11},{"$f":"'Veraset Varlıkları'!B82","v":"Diğer Emlak ve Tröst Faizleri"},{"$nulls":7},{"$f":"'Veraset Varlıkları'!G90","v":{"v":0,"d":"₺0.00"}}]
[null,"✖","Tapu, ipotek ve kira beyannameleri",{"$nulls":11},{"$f":"'Veraset Varlıkları'!B92","v":"Kişisel Mallar ve diğer Varlıklar"},{"$nulls":7},{"$f":"'Veraset Varlıkları'!G100","v":{"v":0,"d":"₺0.00"}}]
[null,"☐","Ödenmemiş faturalar ve senetler",{"$nulls":11},"Varlık Toplamı",{"$nulls":7},{"$f":"'Veraset Varlıkları'!G10","v":{"v":0,"d":"₺0.00"}},{"$nulls":3},"Borçlar Toplamı",{"$nulls":7},{"$f":"SUM(AI36:AN44)","v":{"v":0,"d":"₺0.00"}}]

{"sheet":"Veraset Varlıkları","index":1,"n_rows":100,"n_cols":8,"rows_kept":100,"merged":[[0,1,0,7],[1,1,5,7],[6,1,7,7],[11,1,11,7],[12,1,12,7],[21,1,21,7],[22,1,22,7],[31,1,31,7],[32,1,32,7],[41,1,41,7],[42,1,42,7],[51,1,51,7],[52,1,52,7],[61,1,61,7],[62,1,62,7],[71,1,71,7],[72,1,72,7],[81,1,81,7],[82,1,82,7],[91,1,91,7],[92,1,92,7]]}
[]
[null,"Veraset Varlıkları"]
[]
[]
[]
[]
[null,"Veraset varlıklarının bir envanterini oluşturmak için bu çalışma sayfasını kullanın. Her bir veraset varlığının ölüm tarihindeki piyasa değerini belirlemeniz gerekir. Piyasa değerlerini elde etmek için mali tablolar, sigorta poliçeleri ve vergi beyannameleri dahil tüm kayıtları gözden geçirin. Ayrıca kişisel eşyalar (yani sanat eseri, koleksiyon, antika vb.) için değer biçtirmeniz de gerekebilir. Gayrimenkul, tahvil veya denizaşırı ticari çıkarlar gibi yabancı varlıkları da envantere eklediğinizden emin olun. Yabancı varlıklar için doğru bir piyasa değeri elde etmek için profesyonel yardım almak isteyebilirsiniz."]
[]
[]
[null,"Toplam Varlıklar",{"$nulls":4},{"$f":"tblBankAccounts[[#Totals],[Bakiye ]]+tblPersonalInvestments[[#Totals],[Piyasa Değeri]]+tblBusinessInterests[[#Totals],[Değer ]]+tblRealEstate[[#Totals],[Piyasa Fiyatı]]+tblPensionPlans[[#Totals],[Değer ]]+tblInsurance[[#Totals],[Peşin Değeri ]]+tblMortgages[[#Totals],[Ödenmesi Gereken Borç ]]+tblTrusts[[#Totals],[Dağıtım Tutarı]]+tblOtherAssets[[#Totals],[Değer ]]","v":{"v":0,"d":"₺0.00"}}]
[]
[null,"Banka Hesapları"]
[null,"Nakit, seyahat çeki, havale ve ticari banka, tasarruf bankası, kredi birlikleri hesapları vb. dahil tüm banka hesaplarını listeleyin. Hesapta listelenen tüm adları ve ölüm anındaki tam dolar ve bozdurma tutarını ifade eden gerçek peşin değerini ekleyin."]
[null,"Mali Kuruluş ","Adres","Telefon","Hesap Numarası","Hesap Türü","Bakiye ","Notlar"]
[]
[]
[]
[]
[]
[null,"Toplam",{"$nulls":4},{"$f":"SUBTOTAL(109,tblBankAccounts[[Bakiye ]])","v":{"v":0,"d":"₺0.00"}}]
[]
[null,"Kişisel Yatırımlar"]
[null,"Nakit hesapları, kasa hesapları, Vergiye Tabi Olmayan Tasarruf Hesapları, Kayıtlı Emeklilik Tasarruf Planları (RRSP'ler), Kayıtlı Emeklilik Geliri Fonları (RRIF'ler), Kilitli RRIF'ler, Kilitli RRSP'ler, Hayat Boyu Gelir Fonları, Belirli Emeklilik Geliri Fonları, Kayıtlı Eğitim Tasarruf Planları, anüiteler vb."]
[null,"Şirket","Adres","Telefon","Hesap Numarası","Lehtar","Piyasa Değeri","Notlar"]
[]
[]
[]
[]
[]
[null,"Toplam",{"$nulls":4},{"$f":"SUBTOTAL(109,tblPersonalInvestments[Piyasa Değeri])","v":{"v":0,"d":"₺0.00"}}]
[]
[null,"Ticari Çıkarlar"]
[null,"Şahıs şirketleri, profesyonel uygulamalar, şirketler, ortaklıklar, limited şirketler ve ortaklıklar, ortak girişimler ve diğer halka açık olmayan ticari kuruluşlar dahil olmak üzere tüm ticari çıkarları listeleyin. "]
[null,"İşletme Adı","Adres","Telefon","İlgili kişi","Tür","Değer ","Notlar"]
[]
[]
[]
[]
[]
[null,"Toplam",{"$nulls":4},{"$f":"SUBTOTAL(109,tblBusinessInterests[[Değer ]])","v":{"v":0,"d":"₺0.00"}}]
[]
[null,"Emlak"]
[null,"Merhum ve/veya Merhumun hayatta kalan eşinin/partnerinin malik, müşterek malik veya herhangi bir şekilde menfaat sahibi olduğu, eğlence amaçlı gelişmeler ve devre mülkler de dahil olmak üzere herhangi bir gayrimenkulü listeleyin. Tapuların kopyalarını edinin. Fiziksel adresiyle birlikte gayrimenkulün bir tanımını sağlayın. Vergi denetçisi tarafından yapılan en son değerlendirmeye dayalı olarak mülkün adil piyasa değerini listeleyin."]
[null,"Adres","Mülkiyet sahibi","Telefon","İlgili kişi","Satın Alma Fiyatı","Piyasa Fiyatı","Notlar"]
[]
[]
[]
[]
[]
[null,"Toplam",{"$nulls":3},{"$f":"SUBTOTAL(109,tblRealEstate[Satın Alma Fiyatı])","v":{"v":0,"d":"₺0.00"}},{"$f":"SUBTOTAL(109,tblRealEstate[Piyasa Fiyatı])","v":{"v":0,"d":"₺0.00"}}]
[]
[null,"Emeklilik Planları"]
[null,"Tanımlanmış faydaları, bedellerini veya belirlenmiş katkıları, DPSP’yi listeleyin veya RRSP, vb. gruplayın."]
[null,"Şirket","Telefon","Plan Türü","Lehtar","E-posta adresi","Değer ","Notlar"]
[]
[]
[]
[]
[]
[null,"Toplam",{"$nulls":4},{"$f":"SUBTOTAL(109,tblPensionPlans[[Değer ]])","v":{"v":0,"d":"₺0.00"}}]
[]
[null,"Sigorta"]
[null,"Yaşayan tröstleri, adı verilen lehtarlara sahip hayat sigortası poliçelerini ve vefat halinde devredilen yatırım hesaplarını veraset dışı varlıklar olarak dahil edin. Mahkeme bu varlıklar hakkında soru sorarsa, icracı veraset dışı varlıkların listesine kolayca başvurabilir ve bunların yokluğunu veraset envanterinden açıklayabilir."]
[null,"İhraç eden","Poliçe Numarası","Telefon","Lehtar","İtibari Değer ","Peşin Değeri ","Notlar"]
[]
[]
[]
[]
[]
[null,"Toplam",{"$nulls":3},{"$f":"SUBTOTAL(109,tblInsurance[[İtibari Değer ]])","v":{"v":0,"d":"₺0.00"}},{"$f":"SUBTOTAL(109,tblInsurance[[Peşin Değeri ]])","v":{"v":0,"d":"₺0.00"}}]
[]
[null,"Özel Krediler ve İpotekler"]
[null,"Ölen kişinin borç veren olduğu özel kredileri ve ipotekleri listeleyin."]
[null,"Borçlunun Adı","Adres","Telefon","Tür","Esas Tutar","Ödenmesi Gereken Borç ","Notlar"]
[]
[]
[]
[]
[]
[null,"Toplam",{"$nulls":3},{"$f":"SUBTOTAL(109,tblMortgages[Esas Tutar])","v":{"v":0,"d":"₺0.00"}},{"$f":"SUBTOTAL(109,tblMortgages[[Ödenmesi Gereken Borç ]])","v":{"v":0,"d":"₺0.00"}}]
[]
[null,"Diğer Emlak ve Tröst Faizleri"]
[null,"Ölen kişinin adına kayıtlı başkaları adına tutulan varlıkları listeleyin (örneğin vefat eden kişi tarafından mütevelli olarak tutulan varlıklar veya bir Vekaletname altında tutulan varlıklar)."]
[null,"Emlak/Tröst Adı","Vasiyeti Uygulayanların/Mütevellinin Adı","Telefon","Adres","E-posta adresi","Dağıtım Tutarı","Notlar"]
[]
[]
[]
[]
[]
[null,"Toplam",{"$nulls":4},{"$f":"SUBTOTAL(109,tblTrusts[Dağıtım Tutarı])","v":{"v":0,"d":"₺0.00"}}]
[]
[null,"Kişisel Mallar ve diğer Varlıklar"]
[null,"Örneğin tüm kişisel eşyaları listeleyin; arabalar, mücevherler, sanat, antikalar, mobilyalar. Bir emanet kasasında veya yediemin tevdiinde tutulmuş olabilecek eşyaları dahil edin."]
[null,"Eşya Açıklaması","Yer","Telefon","İlgili kişi","Lehtar","Değer ","Notlar"]
[]
[]
[]
[]
[]
[null,"Toplam",{"$nulls":4},{"$f":"SUBTOTAL(109,tblOtherAssets[[Değer ]])","v":{"v":0,"d":"₺0.00"}}]

{"sheet":"Veraset Borçları","index":2,"n_rows":58,"n_cols":8,"rows_kept":58,"merged":[[0,1,0,7],[1,1,5,7],[6,1,6,7],[10,1,10,7],[20,1,20,7],[30,1,30,7],[40,1,40,7],[50,1,50,7]]}
[]
[null,"Veraset Borçları"]
[]
[]
[]
[]
[null,"Mülkün hem yerli hem de yabancı borçlarının ayrıntılarını yakalamak için bu çalışma sayfasını kullanın. Ölüm tarihi itibariyle her borç için değer biçtirmeniz gerekir."]
[]
[null,"Toplam Varlıklar",{"$nulls":4},{"$f":"SUM(G18,G28,G38,G48,G58)","v":{"v":0,"d":"₺0.00"}}]
[]
[null,"İpotekler"]
[null,"Mali Kuruluş ","Adres","Telefon","Mülkiyet Sahibi","Hesap Numarası","Bakiye ","Notlar"]
[]
[]
[]
[]
[]
[null,"Toplam",{"$nulls":4},{"$f":"SUBTOTAL(109,tblBankAccounts2[[Bakiye ]])","v":{"v":0,"d":"₺0.00"}}]
[]
[]
[null,"Kişisel Krediler ve Kredi Limitleri"]
[null,"Mali Kuruluş","Adres","Telefon"," Hesap Numarası","Tür","Bakiye ","Notlar"]
[]
[]
[]
[]
[]
[null,"Toplam",{"$nulls":4},{"$f":"SUBTOTAL(109,tblPersonalInvestments3[[Bakiye ]])","v":{"v":0,"d":"₺0.00"}}]
[]
[]
[null,"Ticari Çıkarlar"]
[null,"İşletme Adı","Adres"," Telefon"," İlgili kişi","Tür","Değer ","Notlar"]
[]
[]
[]
[]
[]
[null,"Toplam",{"$nulls":4},{"$f":"SUBTOTAL(109,tblBusinessInterests4[[Değer ]])","v":{"v":0,"d":"₺0.00"}}]
[]
[]
[null,"Kredi Kartları"]
[null,"Kredi Kartı Şirketi","Şirket Adresi","Telefon","Kart Numarası","Vade Tarihi ","Bakiye ","Notlar"]
[]
[]
[]
[]
[]
[null,"Toplam",{"$nulls":4},{"$f":"SUBTOTAL(109,tblRealEstate5[[Bakiye ]])","v":{"v":0,"d":"₺0.00"}}]
[]
[]
[null,"Diğer Borçlar"]
[null,"Eşya Açıklaması","Yer","Telefon","İlgili kişi","Lehtar","Değer ","Notlar"]
[]
[]
[]
[]
[]
[null,"Toplam",{"$nulls":4},{"$f":"SUBTOTAL(109,tblPensionPlans6[[Değer ]])","v":{"v":0,"d":"₺0.00"}}]